Cogmind - Beta 13 @@@ ROGUE MODE // 2024.04.10 @ 22:18:55 Player: Gasoline_Joe Result: Destroyed by D-63 Destroyer with Heavy Rocket Launcher Performance ------------- Evolutions (5) 2500 Regions Visited (8) 1600 Robots Destroyed (84) 420 Value Destroyed (2491) 2491 Prototype IDs (3) 60 Alien Tech Used (0) 0 Bonus (67) 67 TOTAL SCORE: 7138 Bonus ------- High Alert Combat Kills 67 Cogmind --------- Core Integrity 0/1000 Matter 245/300 Energy 99/100 System Corruption 1% Temperature Cool (0) Movement Core (50) Location -5/Factory Parts ------- > --- POWER (2) -------- (None) > --- PROPULSION (5) --- (None) > --- UTILITY (7) ------ (None) > --- WEAPON (3) ------- Chainsword > --- INVENTORY (5) ---- Armored Treads Chainsword Peak State ------------ > --- POWER ------------ Light Nuclear Core > --- PROPULSION ------- Wheel Wheel Armored Huge Wheel > --- UTILITY ---------- Medium Storage Unit Visual Processing Unit Improved Sensor Array Improved Melee Analysis Suite Advanced Melee Analysis Suite Improved Light Armor Plating > --- WEAPON ----------- Gatling Laser Chainsword Chainsword > --- INVENTORY -------- Improved Deuterium Engine Fission Core Improved Terrain Scan Processor Improved Melee Analysis Suite Improved Melee Analysis Suite Precision Shock Rifle Heavy Missile Launcher Remote Datajack Chainsword Chainsword [Rating: 47] Favorites ----------- Power Light Nuclear Core Engine Light Deuterium Engine Power Core Light Nuclear Core Propulsion Wheel Leg Aluminum Leg Wheel Wheel Hover Unit Gravmag System Utility Medium Storage Unit Device Improved Sensor Array Storage Medium Storage Unit Processor Visual Processing Unit Hackware Hacking Suite Protection Improved Light Armor Plating Weapon Advanced Assault Cannon Energy Gun EM Pulse Gun Energy Cannon Heavy Particle Cannon Ballistic Gun Light Assault Rifle Ballistic Cannon Advanced Assault Cannon Launcher Rocket Launcher Special Weapon Remote Datajack Slashing Weapon Chainsword Build | -11 -10 -9 -8 -7 -6 -6 -6 -5 ------- Run | Yrd Mat Mat Mat Fac Fac Low Low Fac Slots Evolved 10 | . . 2 2 2 2 . . 2 Power 1 | . . . . . 1 . . . Propulsion 3 | . . 1 . . 1 . . 1 Utility 5 | . . 1 2 1 . . . 1 Weapon 1 | . . . . 1 . . . . Parts Attached 104 | 7 15 5 26 33 8 . . 10 Power 12 | 1 2 . 3 2 2 . . 2 Engine 5 | 1 1 . . 1 . . . 2 Core 7 | . 1 . 3 1 2 . . . Reactor . | . . . . . . . . . Propulsion 23 | 2 3 4 8 4 2 . . . Treads . | . . . . . . . . . Leg 11 | 2 3 4 2 . . . . . Wheel 5 | . . . 2 1 2 . . . Hover 7 | . . . 4 3 . . . . Flight . | . . . . . . . . . Utility 23 | 2 3 1 8 7 1 . . 1 Device 9 | 1 2 . 3 2 . . . 1 Storage 3 | 1 1 . . 1 . . . . Processor 6 | . . 1 3 1 1 . . . Hackware 1 | . . . . 1 . . . . Protection 4 | . . . 2 2 . . . . Artifact . | . . . . . . . . . Weapon 46 | 2 7 . 7 20 3 . . 7 Energy Gun 13 | 1 3 . 4 5 . . . . Energy Cannon 4 | . . . 2 2 . . . . Ballistic Gun 3 | 1 2 . . . . . . . Ballistic Cannon 5 | . . . . 4 . . . 1 Launcher 4 | . . . . 4 . . . . Special Weapon 9 | . 2 . 1 4 . . . 2 Impact Weapon . | . . . . . . . . . Slashing Weapon 8 | . . . . 1 3 . . 4 Piercing Weapon . | . . . . . . . . . Special Melee Weapon . | . . . . . . . . . Unidentified Prototypes 3 | . . . 2 1 . . . . Parts Lost 36 | . 1 . 15 6 1 1 2 10 Power 5 | . . . 1 . 1 . . 3 Propulsion 11 | . 1 . 6 1 . 1 1 1 Utility 11 | . . . 5 3 . . 1 2 Weapon 9 | . . . 3 2 . . . 4 Highest Loss Streak 7 | . 1 . 5 2 1 1 2 7 To Critical Strikes . | . . . . . . . . . Average Slot Usage (%) 83 | . 93 99 84 84 74 86 77 50 Engine 1 | . 5 . . 1 3 . . . Core 7 | . 8 11 8 5 6 13 13 7 Leg 7 | . 25 33 11 . . . . . Wheel 7 | . . . 1 8 19 20 13 3 Hover 3 | . . . 6 5 . . . . Device 10 | . 11 11 9 12 6 6 6 5 Storage 8 | . 14 11 9 7 6 6 6 3 Processor 10 | . . 10 17 7 14 20 20 13 Hackware 2 | . . . . 6 . . . . Protection 3 | . . . 2 5 6 6 4 . Energy Gun 8 | . 18 22 14 4 5 . . . Energy Cannon 2 | . . . 3 4 . . . . Ballistic Cannon 3 | . . . . 9 . . . 1 Slashing Weapon 2 | . . . . 1 1 13 13 11 Naked Turns 11 | . . . . . . . . 11 Heaviest Build 51 | 12 20 20 41 51 35 35 35 46 Greatest Support 48 | 20 20 30 30 28 48 48 38 10 Greatest Overweight (x) 12 | 3 2 . 9 12 . . 3 10 Average Overweight (x) . | . . . 1 1 . . . 2 Largest Inventory Capacity 10 | 8 10 10 10 10 10 10 10 10 Average Capacity 9 | 7 8 10 10 10 10 10 10 8 Most Carried 10 | 6 8 10 10 10 10 10 10 10 Average Carried 8 | 4 7 8 9 9 9 10 10 8 Final Capacity 10 | 8 10 10 10 10 10 10 10 5 Final Carried 10 | 6 8 10 6 10 10 10 10 2 Class Distribution -------------------- 40% | Mutant 22% | Skirmisher 16% | Gladiator 14% | Scavenger-Mutant 5% | Scavenger-Skirmisher Dominant Class ---------------- Mutant | -10/Materials Scavenger-Mutant | -9/Materials Scavenger-Mutant | -8/Materials Skirmisher | -7/Factory Mutant | -6/Factory Gladiator | -6/Lower Caves Gladiator | -6/Lower Caves Gladiator | -5/Factory Resources | -11 -10 -9 -8 -7 -6 -6 -6 -5 ----------- Run | Yrd Mat Mat Mat Fac Fac Low Low Fac Matter Collected 1609 | 286 169 60 220 537 39 297 . 1 Remotely . | . . . . . . . . . Salvage Created 2932 | 129 458 130 800 998 25 244 135 13 Parts 164 | 13 29 10 40 57 3 9 3 . Haulers Intercepted 3 | . 1 . 1 1 . . . . Recyclers Shooed 5 | . . 1 1 3 . . . . Parts Field Recycled . | . . . . . . . . . Retrieved Matter . | . . . . . . . . . Parts Self-Destructed 11 | . . . . . . 10 1 . Prevented . | . . . . . . . . . Kills | -11 -10 -9 -8 -7 -6 -6 -6 -5 ------- Run | Yrd Mat Mat Mat Fac Fac Low Low Fac Combat Hostiles Destroyed 59 | . 8 3 15 24 1 5 2 1 Melee 8 | . . . . . . 5 2 1 Guns 19 | . 5 3 10 . 1 . . . Cannons 13 | . . . 4 9 . . . . AOE 17 | . 3 . . 14 . . . . Classes Destroyed 13 | 2 4 . 3 3 . . . 1 Worker 8 | . 1 . . 7 . . . . Builder 3 | . . . . 3 . . . . Tunneler 4 | 3 . . 1 . . . . . Hauler 3 | . 1 . 1 1 . . . . Recycler 6 | 1 . . 1 4 . . . . Watcher 2 | . 1 . . 1 . . . . Swarmer 17 | . . . 3 11 1 2 . . Grunt 32 | . 8 3 8 9 . 2 2 . Duelist 2 | . . . . 1 . 1 . . Sentry 3 | . . . 2 1 . . . . Hunter 2 | . . . 2 . . . . . Programmer 2 | . . . . 2 . . . . Assembled 1 | . . . . . . . . 1 Best Kill Streak 14 | 1 5 3 4 14 1 3 2 1 Combat Bots Only 5 | . 3 3 3 5 1 3 2 1 Max Kills in Single Turn 7 | 1 2 1 1 7 1 1 1 1 Gunslinging . | . . . . . . . . . Exploded 2 | . 2 . . 2 . . . . Melee 1 | . . . . . . 1 1 1 Uniques/NPCs Destroyed . | . . . . . . . . . Combat | -11 -10 -9 -8 -7 -6 -6 -6 -5 -------- Run | Yrd Mat Mat Mat Fac Fac Low Low Fac Hostile Shots Fired 405 | . 32 4 153 125 22 12 19 38 Missed 110 | . 9 1 33 42 10 2 5 8 Damage Taken 5812 | . 455 33 1651 1247 245 194 265 1722 Core 1585 | . 95 10 264 94 40 19 55 1008 Absorbed by Shields 39 | . . . . 39 . . . . Core Remaining (%) 80 | 100 62 97 52 86 . . 86 . Volleys Fired 196 | 17 38 7 68 58 7 . . 1 Largest 3 | 2 2 2 2 3 1 . . 1 Hottest 165 | 60 100 90 150 165 80 . . 53 Shots Fired 318 | 23 69 14 109 95 7 . . 1 Gun 203 | 23 62 14 82 15 7 . . . Cannon 80 | . . . 25 54 . . . 1 Launcher 20 | . . . . 20 . . . . Special 15 | . 7 . 2 6 . . . . Kinetic 87 | 16 30 . . 40 . . . 1 Thermal 123 | . 8 7 82 19 7 . . . Explosive 20 | . . . . 20 . . . . Electromagnetic 84 | 7 31 7 27 12 . . . . Robot Hit Streak 14 | 7 11 11 14 10 2 . . 2 Robot Miss Streak 3 | 2 2 1 3 3 2 . . . Penetration Max . | . . . . . . . . . Secondary Targets 2 | . 1 . 1 . . . . . Max Gunslinging Chain 1 | . 1 . 1 . . . . . Shots Hit Robots 236 | 14 44 12 76 60 7 12 7 4 Core Hits 150 | 5 20 8 38 62 3 8 4 2 Critical Kills . | . . . . . . . . . Critical Parts Destroyed 1 | . 1 . . . . . . . Critical Strikes 15 | . 1 2 6 2 . 4 . . Burn 7 | . . 2 5 . . . . . Destroy 1 | . 1 . . . . . . . Blast 1 | . . . . 1 . . . . Corrupt 1 | . . . 1 . . . . . Sever 5 | . . . . 1 . 4 . . Melee Attacks 40 | . . . . 15 . 13 8 4 Impact . | . . . . . . . . . Slashing 40 | . . . . 15 . 13 8 4 Piercing . | . . . . . . . . . Sneak Attacks 1 | . . . . . . 1 . . Combat Hostiles 1 | . . . . . . 1 . . Follow-up Attacks 5 | . . . . . . 4 . 1 Damage Inflicted 6697 | 153 659 153 1296 3362 120 501 284 169 Guns 2036 | 153 505 153 858 247 120 . . . Cannons 1537 | . . . 414 1097 . . . 26 Explosions 1999 | . 154 . . 1845 . . . . Melee 1101 | . . . . 173 . 501 284 143 Ramming . | . . . . . . . . . Kinetic 1071 | 85 187 . . 773 . . . 26 Thermal 1556 | . 154 89 828 365 120 . . . Explosive 1845 | . . . . 1845 . . . . Electromagnetic 1124 | 68 318 64 468 206 . . . . Impact . | . . . . . . . . . Slashing 1101 | . . . . 173 . 501 284 143 Piercing . | . . . . . . . . . Highest Corruption 2 | . . . 2 2 . . 1 1 Average Corruption 1 | . . . 2 1 . . 1 1 Corruption Purged . | . . . . . . . . . Corruption Blocked . | . . . . . . . . . Effects 9 | . . . 4 5 . . . . Message Errors 2 | . . . 2 . . . . . Matter Fused 2 | . . . 1 1 . . . . Data Loss (minor) 4 | . . . 1 3 . . . . Misfires 1 | . . . . 1 . . . . Overload Shots . | . . . . . . . . . Overflow Damage 121 | . 27 . . 94 . . . . Projectiles 10 | . . . . 10 . . . . Explosions 78 | . 27 . . 51 . . . . Melee 33 | . . . . 33 . . . . Knockbacks 8 | . . . . 8 . . . . Impact . | . . . . . . . . . Kinetic 7 | . . . . 7 . . . . Secondary 1 | . . . . 1 . . . . Self-Inflicted Damage 265 | . 149 . . 116 . . . . Shots 8 | . 3 . . 5 . . . . Rammed . | . . . . . . . . . Targets Rammed . | . . . . . . . . . Kicked . | . . . . . . . . . Crushed . | . . . . . . . . . Highest Temperature 525 | 40 144 183 525 102 120 21 1 1 Average Temperature 101 | 22 50 91 149 29 62 10 1 1 Received Heat Transfer 1110 | . 171 39 522 171 . 108 99 . Effects 12 | . . . 12 . . . . . Shutdowns 5 | . . . 5 . . . . . Interference 1 | . . . 1 . . . . . Short Circuit 1 | . . . 1 . . . . . Damage (major) 4 | . . . 4 . . . . . Damage (core) 1 | . . . 1 . . . . . Siege Activations . | . . . . . . . . . Robots Corrupted 2 | . . . 1 1 . . . . Combat Hostiles 2 | . . . 1 1 . . . . Parts Fried 6 | . 1 . 3 2 . . . . Impact Corruptions . | . . . . . . . . . Robots Melted . | . . . . . . . . . Combat Hostiles . | . . . . . . . . . Parts Melted 2 | . . . 2 . . . . . Heat Transferred 3732 | . 150 407 2381 519 275 . . . Parts Sabotaged . | . . . . . . . . . Parts Stolen . | . . . . . . . . . Parts Stripped . | . . . . . . . . . Power Chain Reactions 2 | . 2 . . . . . . . Alert | -11 -10 -9 -8 -7 -6 -6 -6 -5 ------- Run | Yrd Mat Mat Mat Fac Fac Low Low Fac Peak Influence 645 | 20 255 142 197 645 318 . . 84 Initial 283 | . 13 57 59 62 283 . . 69 Average 171 | 8 86 91 93 264 294 . . 67 Maximum Alert Level 2 | . 1 . . 2 1 . . . Low Security (%) 72 | 100 89 100 100 53 . . . 100 Level 1 12 | . 10 . . 11 100 . . . Level 2 14 | . . . . 35 . . . . Level 3 . | . . . . . . . . . Level 4 . | . . . . . . . . . Level 5 . | . . . . . . . . . High Security . | . . . . . . . . . Max Security . | . . . . . . . . . Squads Dispatched 12 | . 2 1 1 7 . . . 1 Investigation 2 | . . . 1 1 . . . . Extermination 4 | . . . . 3 . . . 1 Reinforcement 6 | . 2 1 . 3 . . . . Assault . | . . . . . . . . . Garrison . | . . . . . . . . . Intercept . | . . . . . . . . . Searches Triggered . | . . . . . . . . . Construction Impeded 2 | . . . . 2 . . . . Haulers Reinforced 1 | . . . . 1 . . . . Active Scanning Responses . | . . . . . . . . . Cargo Convoy Interrupts . | . . . . . . . . . Stealth | -11 -10 -9 -8 -7 -6 -6 -6 -5 --------- Run | Yrd Mat Mat Mat Fac Fac Low Low Fac Distress Signals 7 | . 1 . 3 2 . . . 1 Communications Jammed 2 | . . . . . . . . 2 Distress Signals 2 | . . . . . . . . 2 Times Spotted 121 | . 13 6 23 43 4 11 4 17 Peak Tracking Total 8 | . 5 4 4 8 3 7 3 6 Tactical Retreats 11 | . 1 . 3 5 1 . . 1 Traps | -11 -10 -9 -8 -7 -6 -6 -6 -5 ------- Run | Yrd Mat Mat Mat Fac Fac Low Low Fac Traps Triggered 5 | . . . 1 3 . . . 1 Indirectly . | . . . . . . . . . Trap Hack Attempts . | . . . . . . . . . Triggered . | . . . . . . . . . Disarmed . | . . . . . . . . . Reprogrammed 1 | . . . 1 . . . . . Reused 1 | . . . 1 . . . . . Traps Extracted . | . . . . . . . . . Installed . | . . . . . . . . . Triggered 1 | . . . 1 . . . . . Machines | -11 -10 -9 -8 -7 -6 -6 -6 -5 ---------- Run | Yrd Mat Mat Mat Fac Fac Low Low Fac Machines Disabled 3 | . 2 . . 1 . . . . Max in Single Turn 1 | . 1 . . 1 . . . . Garrison Access 1 | . . . . 1 . . . . Machines Repaired . | . . . . . . . . . Machines Dismantled . | . . . . . . . . . Machines Sabotaged . | . . . . . . . . . Overloaded Fab Kills . | . . . . . . . . . Hacking | -11 -10 -9 -8 -7 -6 -6 -6 -5 --------- Run | Yrd Mat Mat Mat Fac Fac Low Low Fac Machines Accessed 13 | . 2 1 2 7 1 . . . Terminals 8 | . 1 . 2 4 1 . . . Fabricators 1 | . . . . 1 . . . . Repair Stations . | . . . . . . . . . Recycling Units 1 | . 1 . . . . . . . Scanalyzers 1 | . . 1 . . . . . . Garrison Access 2 | . . . . 2 . . . . Total Hacks 29 | . 6 2 6 13 2 . . . Successful 15 | . 5 2 2 6 . . . . Failed 14 | . 1 . 4 7 2 . . . Catastrophic 3 | . . . 1 2 . . . . Database Lockouts . | . . . . . . . . . Manual 4 | . 2 . 2 . . . . . Terminals 20 | . 4 . 6 8 2 . . . Fabricators 1 | . . . . 1 . . . . Repair Stations . | . . . . . . . . . Recycling Units 2 | . 2 . . . . . . . Scanalyzers 2 | . . 2 . . . . . . Garrison Access 4 | . . . . 4 . . . . Terminal Hacks 9 | . 2 . 2 5 . . . . Record 3 | . . . . 3 . . . . Robot Analysis 2 | . . . 1 1 . . . . Branch Access Points 1 | . . . . 1 . . . . Alert Level 1 | . 1 . . . . . . . Reprogram Traps 1 | . . . 1 . . . . . Zone Layout 1 | . 1 . . . . . . . Fabricator Hacks . | . . . . . . . . . Repair Station Hacks . | . . . . . . . . . Recycling Unit Hacks 2 | . 2 . . . . . . . Report Inventory 1 | . 1 . . . . . . . Retrieve Components 1 | . 1 . . . . . . . Scanalyzer 2 | . . 2 . . . . . . Insert Component 1 | . . 1 . . . . . . Analyze 1 | . . 1 . . . . . . Garrison Access Hacks 1 | . . . . 1 . . . . Seal Access 1 | . . . . 1 . . . . Unauthorized Hacks 1 | . 1 . . . . . . . Terminals 1 | . 1 . . . . . . . Operators 1 | . 1 . . . . . . . Fabricators . | . . . . . . . . . Repair Stations . | . . . . . . . . . Recycling Units . | . . . . . . . . . Scanalyzers . | . . . . . . . . . Garrison Access . | . . . . . . . . . Data Cores Recovered . | . . . . . . . . . Used . | . . . . . . . . . Hacking Detections 10 | . 1 1 2 5 1 . . . Full Trace Events 1 | . . . . 1 . . . . Feedback Events . | . . . . . . . . . Feedback Blocked . | . . . . . . . . . Robot Schematics Acquired . | . . . . . . . . . Robots Built . | . . . . . . . . . Authchips . | . . . . . . . . . Time . | . . . . . . . . . Total Robot Build Rating . | . . . . . . . . . Part Schematics Acquired 1 | . . 1 . . . . . . Parts Built . | . . . . . . . . . Authchips . | . . . . . . . . . Time . | . . . . . . . . . Total Part Build Rating . | . . . . . . . . . Parts Repaired . | . . . . . . . . . Time . | . . . . . . . . . Parts Recycled . | . . . . . . . . . Recycled Matter . | . . . . . . . . . Retrieved Matter . | . . . . . . . . . Retrieved Components 2 | . 2 . . . . . . . Parts Scanalyzed 1 | . . 1 . . . . . . Part Schematics Acquired 1 | . . 1 . . . . . . Parts Damaged . | . . . . . . . . . Bothacking | -11 -10 -9 -8 -7 -6 -6 -6 -5 ------------ Run | Yrd Mat Mat Mat Fac Fac Low Low Fac Used RIF Installer . | . . . . . . . . . Robots Hacked 2 | . . . . 2 . . . . Non-combat 1 | . . . . 1 . . . . Combat 1 | . . . . 1 . . . . Robot Hacks Applied 2 | . . . . 2 . . . . parse_system 2 | . . . . 2 . . . . Relay Couplers Released 4 | . . . . 4 . . . . Programmers 4 | . . . . 4 . . . . Fabnet Peak Effective % . | . . . . . . . . . Robots Rewired . | . . . . . . . . . Allies Hacked . | . . . . . . . . . Hacks Repelled . | . . . . . . . . . Allies | -11 -10 -9 -8 -7 -6 -6 -6 -5 -------- Run | Yrd Mat Mat Mat Fac Fac Low Low Fac Total Allies . | . . . . . . . . . Largest Group . | . . . . . . . . . Highest-Rated Group . | . . . . . . . . . Highest-Rated Ally . | . . . . . . . . . Total Orders . | . . . . . . . . . Ally Attacks . | . . . . . . . . . Total Damage . | . . . . . . . . . Kills . | . . . . . . . . . Allies Corrupted . | . . . . . . . . . Allies Melted . | . . . . . . . . . Intel | -11 -10 -9 -8 -7 -6 -6 -6 -5 ------- Run | Yrd Mat Mat Mat Fac Fac Low Low Fac Robot Analysis Total 2 | . . . 1 1 . . . . Derelict Logs Recovered 2 | . . . . . . 2 . . Drone Launches . | . . . . . . . . . Drone Recoveries . | . . . . . . . . . Exploration | -11 -10 -9 -8 -7 -6 -6 -6 -5 ------------- Run | Yrd Mat Mat Mat Fac Fac Low Low Fac Turns Passed 5437 | 187 571 375 1013 1991 332 529 85 354 Spaces Moved 3141 | 105 262 182 405 1064 302 544 67 210 Core 76 | 16 3 . 6 1 . . . 50 Treads . | . . . . . . . . . Legs 734 | 89 259 182 204 . . . . . Wheels 1913 | . . . 62 778 302 544 67 160 Hover 418 | . . . 133 285 . . . . Flight . | . . . . . . . . . Fastest Speed 42 | 50 120 120 42 95 86 86 90 50 Average Speed 111 | 117 126 120 150 109 86 86 91 119 Slowest Speed 650 | 200 190 120 500 650 86 90 125 550 Overloaded Moves . | . . . . . . . . . Propulsion Burnouts . | . . . . . . . . . Robots Hopped . | . . . . . . . . . Cave-ins Triggered . | . . . . . . . . . Exploration Rate (%) 24 | 5 44 17 27 30 7 69 11 6 Regions Visited 8 Branch Regions 2 Pre-discovered Areas . | . . . . . . . . . Known Exits Taken 1 | . . 1 . . . . . . Unknown Exits Taken 7 | 1 1 . 1 1 1 1 1 . Scrap Searched 1 | . . . . . . 1 . . Spaces Dug 17 | . 7 . . 10 . . . . Terrain Destroyed 133 | . 43 . . 90 . . . . Melee 10 | . . . . 10 . . . . Projectile 11 | . 7 . . 4 . . . . AOE 112 | . 36 . . 76 . . . . Terrain Rammed . | . . . . . . . . . Walls Destroyed . | . . . . . . . . . Machines Disabled . | . . . . . . . . . Actions | -11 -10 -9 -8 -7 -6 -6 -6 -5 --------- Run | Yrd Mat Mat Mat Fac Fac Low Low Fac Total 4713 | 149 426 328 695 1771 367 591 80 306 Wait 1094 | 6 89 124 174 537 39 40 7 78 Move 3133 | 104 261 181 404 1063 301 543 66 210 Hop . | . . . . . . . . . Pick Up 68 | 14 11 6 14 18 5 . . . Fast Attach 28 | . 1 . 5 13 4 . . 5 Attach 50 | 7 4 2 17 12 4 . . 4 Detach 8 | . . . . 5 2 . . 1 Swap 26 | . 10 3 4 8 . . . 1 Drop 56 | 1 12 5 9 21 5 . . 3 Fire 196 | 17 38 7 68 58 7 . . 1 Melee 33 | . . . . 15 . 8 7 3 Ram . | . . . . . . . . . Kick . | . . . . . . . . . Crush . | . . . . . . . . . Escape Stasis 21 | . . . . 21 . . . . Rewire . | . . . . . . . . . Trap . | . . . . . . . . . Miscellaneous . | . . . . . . . . . Route ------- -11/Scrapyard -10/Materials (discovered 2 exits: *Mat / [*Min]) -9/Materials -8/Materials -7/Factory (discovered 3 exits: *Fac / Low x2) -6/Factory -6/Lower Caves -6/Lower Caves -5/Factory (discovered 1 exit: Fac) History --------- Turn | Location | Event 24 | -11/Scrapyard | Discovered new exit (range 15) 188 | -11/Scrapyard | Entered Materials 301 | -10/Materials | Build established: Mutant 448 | -10/Materials | Discovered new exit (range 16) 753 | -10/Materials | Discovered new exit (range 5) 759 | -10/Materials | Entered another Materials area 759 | -9/Materials | Evolved 2 slots: Propulsion x1, Utility x1 1057 | -9/Materials | Build established: Scavenger-Mutant 1130 | -9/Materials | Discovered new exit (range 5) 1133 | -9/Materials | Identified exit to Materials 1134 | -9/Materials | Entered another Materials area 1134 | -8/Materials | Evolved 2 slots: Utility x2 1544 | -8/Materials | Lost 4 parts (2n1u1w) 2032 | -8/Materials | Lost 3 parts (1n1u1w) 2104 | -8/Materials | Lost 5 parts (1p2n2u) 2106 | -8/Materials | Build established: Mutant 2109 | -8/Materials | Discovered new exit (range 14) 2147 | -8/Materials | Entered Factory 2147 | -7/Factory | Evolved 2 slots: Utility x1, Weapon x1 2450 | -7/Factory | Build established: Skirmisher 3684 | -7/Factory | Identified exit to Lower Caves 4000 | -7/Factory | Build established: Mutant 4120 | -7/Factory | Discovered new exit (range 17) 4138 | -7/Factory | Entered another Factory area 4138 | -6/Factory | Evolved 2 slots: Power x1, Propulsion x1 4174 | -6/Factory | Discovered new exit (range 11) 4470 | -6/Factory | Entered Lower Caves 4568 | -6/Lower Caves | Learned Factory emergency access door positions 4635 | -6/Lower Caves | Encountered a Warlord checkpoint 4747 | -6/Lower Caves | Build established: Gladiator 4924 | -6/Lower Caves | Learned 8 Factory zone layouts 4977 | -6/Lower Caves | Discovered new exit (range 13) 4999 | -6/Lower Caves | Entered another Lower Caves area 5045 | -6/Lower Caves | Discovered new exit (range 14) 5084 | -6/Lower Caves | Entered Factory 5084 | -5/Factory | Evolved 2 slots: Propulsion x1, Utility x1 5085 | -5/Factory | Identified exit to Factory 5310 | -5/Factory | Assembled infested ambush trap array 5358 | -5/Factory | Released all parts (5) 5383 | -5/Factory | Lost 7 parts (2p1n2u2w) 5427 | -5/Factory | Core integrity fell below 50% 5435 | -5/Factory | Core integrity fell below 20% 5438 | -5/Factory | Destroyed by D-63 Destroyer with Heavy Rocket Launcher Last Messages --------------- 05349_ Wheel destroyed. 05349_ Segregator destroyed. 05350_ W-25 Informer distress signal jammed. 05351_ Transmission Jammer destroyed. 05351_ Imp. Sensor Array destroyed. 05351_ Fission Core destroyed. 05352_ Magnetic Acceleration Cannon destroyed. 05352_ Imp. Deuterium Engine destroyed. 05353_ The unstable cave ceiling collapses. 05358_ Released Adv. Melee Analysis Suite. 05358_ Released Visual Processing Unit. 05358_ Released Med. Storage Unit. 05358_ Released Imp. Melee Analysis Suite. 05358_ Released Chainsword. 05358_ Penetrated by Slug. 05360_ The unstable cave ceiling collapses. 05429_ W-25 Informer sends out distress signal. 05430_ Chainsword destroyed. 05435_ K-01 Serf pushes L-41 Fighter. Map ----- +----------------------------------------------------+ | ????????????????????###### " ### """" #??? | | ????????????????????# + """" #??? | | ????#############???# # """" #??? | | ???? #### # """" #??? | | ??? """ """" #??? | | ??? """ """" #??" | | ????????#### " """ #??" | | ???????????# "%" % #? " | | ???????????# " """ / # ######+#? | | ???????????# "Y #???# # " | | ???????????# """ ##### # " | | ???????????# % + " | | ???????????# # | | ???????????# # # #!### ### #### | | ???????????# |!] # ! | | ???????????## ## !!/ # | | ????????????# ## # """"""""" | | ????????????# # # k # | | ????????????# ## l """"""""" | | ????????????# ??# | | ????????????# ??### # """"""""" | | ????????????# ???## | | ????????????? #### | | ??????????????????? d ###### | | ????????????????????### ## | | ??????????????????????# d@ ## | | ??????????????????????# w ####+# | | ??????????????????????# #????? | | ??????????????????????# #????? | | ??????????????????????# #????? | | ??????????????????????# #????? | | ??????????????????????# # ## #????? | | ??????????????????????# ##############????? | | ??????????????????????# ####?????????????????? | | ??????????????????????# #????????????????????? | | ??????????????????????## ##????????????????????? | | ???????????????????????# #?????????????????????? | | ???????????????????????# #?????????????????????? | | ???????????????????????# u??????????????????????? | | ???????????????????????# ??????????????????????? | | ??????????????????????? ??????????????????????? | | ????????????????????????? ??????????????????????? | | ?????????????????????????????????????????????????? | | ????????????????????????????????H????????????????? | | ?????????????????????????????????????????????????? | | ?????????????????????????????????????????????????? | | ?????????????????????????????????????????????????? | | ?????????????????????????????????????????????????? | | ?????????????????????????????????????????????????? | | ?????????????????????????????????????????????????? | +----------------------------------------------------+ Best States ------------- Heat Dissipation 61 Energy Generation 31 Energy Capacity 500 Matter Stores 300 Matter Capacity 300 Sight Range 20 Robot Scan Range 15 Terrain Scan Range 16 Terrain Scan Density 10 Jamming Range 12 Armor Coverage 600 Evasion (%) 56 Melee Accuracy 14 Particle Charging 15 Offensive Hacking 10 Item Schematics ----------------- Grenade Launcher | -9/Materials | Scanalyzed Robot Schematics ------------------ None Fabricated ------------ Nothing Alien Tech Used ----------------- None Achievements -------------- Part-time Excavator Power Corrupts True Hacker Challenges ------------ None Game ------ Seed PoweredPortableInjector Manual? 0 Play Time 01:24:38 Cumulative 7.7 hours Start 2024.04.10 @ 20:38:40 End 2024.04.10 @ 22:18:55 Sessions 1 Manual Loads 0 Difficulty Rogue Special Mode None Game No. 7 Rogue 7 Adventurer 0 Explorer 0 Win Type - Total 0 Types 0/0/0/0/0/0/0/0/0 Lore% 7 Gallery% 11 Achievement% 14 Wizard Run 0 Options --------- Layout 1 ASCII 0 Keyboard 0 Movement Mouse Keybinds 0 Fullscreen 2 Font 24/Smallcaps Map View 50x35 Zoom Use 0% Tactical HUD 1 Map Filters NONE Filters NONE Steam 1 RUN: 30db34d3-eda5-4456-aec9-bc6969ef9747